bitfinex/quotes_ETHUSD_20260302
["timestamp","ask_amount","ask_price","bid_price","bid_amount"]
[1772444102025,4.25799115,1961.6,1961.2,0.001]
[1772444103471,5.5324784,1961.6,1961.2,0.001]
[1772444104025,4.25799115,1961.6,1961.2,0.001]
[1772444104258,4.25799115,1962.5,1961.3,4.11528205]
[1772444104548,4.25799115,1962.2,1961.3,4.11528205]
[1772444106572,4.25799115,1962.2,1961.5,4.11528205]
[1772444106963,5.5320774,1962.2,1961.5,4.11528205]
[1772444107155,4.25799115,1962.1,1961.5,4.11528205]
[1772444108171,4.25799115,1962.1,1961.3,5.38992123]
[1772444109014,4.25799115,1961.9,1961.3,5.38992123]
[1772444109564,4.25799115,1961.9,1961.4,4.11628205]
[1772444110656,4.25799115,1961.9,1961.4,0.001]
[1772444110856,4.25799115,1961.9,1961.3,0.001]
[1772444110857,4.25799115,1961.6,1961.3,0.001]
[1772444113291,5.53249946,1961.6,1961.3,0.001]
[1772444113977,4.25799115,1961.5,1961.2,0.001]
[1772444115503,7.66755733,1961.5,1961.2,0.001]
[1772444115702,7.6675359,1961.5,1961.2,0.001]
[1772444116408,6.39299115,1961.5,1961.2,0.001]
[1772444116568,7.66752685,1961.5,1961.2,0.001]
[1772444117906,6.39299115,1961.5,1961.2,0.001]
[1772444119101,7.66752871,1961.5,1961.2,0.001]
[1772444119563,6.39299115,1961.5,1961.2,0.001]
[1772444119876,7.66754105,1961.5,1961.2,0.001]
[1772444120074,4.29316881,1961.4,1961.2,0.001]
[1772444122800,4.29316881,1961.4,1961.3,0.001]
[1772444123097,4.29516881,1961.4,1961.3,0.001]
[1772444124201,5.56976858,1961.4,1961.3,0.001]
[1772444124406,4.29316881,1961.3,1960.9,0.001]
[1772444124610,4.29316881,1961.1,1960.9,0.001]
[1772444124777,2.142,1961.2,1960.9,4.35324672]
[1772444126789,2.142,1961.2,1960.9,5.62813527]
[1772444129475,2.142,1961.2,1960.9,4.35324672]
[1772444129779,6.43516881,1961.2,1960.9,4.35324672]
[1772444129979,7.70991344,1961.2,1960.9,0.001]
[1772444130183,4.29316881,1961.1,1960.9,0.001]
[1772444131181,2.142,1961.2,1960.9,0.001]
[1772444131396,2.142,1961.2,1961.0,4.35224672]
[1772444131600,2.142,1961.2,1961.0,5.62707374]
[1772444132102,2.142,1961.2,1960.9,4.35324672]
[1772444133077,7.70990179,1961.2,1960.9,0.001]
[1772444133307,4.29316881,1961.1,1960.5,4.35324672]
[1772444133600,4.29316881,1960.9,1960.5,4.35324672]
[1772444134004,6.43716881,1960.8,1960.5,0.001]
[1772444135176,2.144,1960.8,1960.5,5.62843028]
[1772444135381,2.144,1960.8,1960.5,1.27618356]
[1772444135609,2.144,1960.8,1960.5,5.62843028]
[1772444136388,2.144,1960.8,1960.5,4.35324672]
[1772444136786,2.144,1960.8,1960.7,0.001]
[1772444139614,4.29516881,1961.1,1960.7,4.35324672]
[1772444139818,5.56997673,1961.1,1960.7,4.35324672]
[1772444140111,4.29316881,1961.0,1960.7,0.001]
[1772444141287,0.002,1961.1,1960.7,1.27604938]
[1772444141494,0.002,1961.1,1960.7,5.6282961]
[1772444142292,0.002,1961.1,1960.8,4.35224672]
[1772444144115,0.002,1961.1,1960.9,1.27492477]
[1772444145092,0.002,1961.1,1960.9,5.62717149]
[1772444146090,0.002,1961.1,1960.7,4.35324672]
[1772444146290,0.002,1961.1,1960.7,5.62830154]
[1772444149624,0.002,1961.1,1960.8,0.001]
[1772444150637,0.002,1961.1,1960.8,4.41758733]
[1772444151141,0.002,1961.1,1960.8,0.001]
[1772444151317,4.52111611,1961.1,1960.8,1.27598673]
[1772444151513,4.52111611,1961.1,1960.8,0.001]
[1772444155226,4.52111611,1961.1,1960.8,4.41758733]
[1772444156010,0.002,1961.1,1960.8,4.41758733]
[1772444158656,4.52111611,1961.1,1960.8,0.001]
[1772444159730,4.52111611,1961.1,1960.7,5.69259471]
[1772444159731,4.52111611,1961.1,1960.5,1.27618304]
[1772444159923,4.52111611,1961.1,1960.6,4.41658733]
[1772444160659,4.51911611,1961.0,1960.6,5.69170056]
[1772444161058,4.83144053,1960.9,1960.5,0.001]
[1772444161249,4.51911611,1960.9,1960.5,4.41758733]
[1772444161589,4.51911611,1960.9,1960.8,0.001]
[1772444161924,0.002,1961.2,1960.9,4.41658733]
[1772444162128,4.52111611,1961.4,1961.0,0.31232442]
[1772444162357,0.002,1961.3,1961.0,0.31232442]
[1772444162561,4.51911611,1961.2,1960.8,4.41758733]
[1772444162728,0.002,1961.3,1960.8,4.72991175]
[1772444162934,4.52111611,1961.3,1960.8,4.72991175]
[1772444163657,0.002,1961.4,1961.2,4.41658733]
[1772444163875,0.002,1961.4,1961.0,4.72891175]
[1772444164722,4.83344053,1961.4,1960.8,4.41758733]
[1772444164928,4.83344053,1961.4,1960.8,5.69256467]
[1772444165128,4.83144053,1961.2,1960.8,0.001]
[1772444165370,4.51911611,1960.9,1960.7,0.001]
[1772444165940,4.51911611,1960.8,1960.5,0.001]
[1772444166345,4.51911611,1961.0,1960.5,6.0050885]
[1772444166568,6.48511611,1961.0,1960.5,6.0050885]
[1772444166738,6.48511611,1961.0,1960.5,5.69276408]
[1772444166938,4.51911611,1960.9,1960.5,5.69276408]
[1772444167164,4.51911611,1960.9,1960.5,4.41758733]
[1772444167733,4.51911611,1960.9,1960.4,0.001]
[1772444167938,4.51911611,1960.7,1960.4,0.001]
[1772444168368,4.51911611,1960.7,1960.4,1.27623139]
[1772444168565,4.51911611,1960.9,1960.4,5.69283521]
[1772444168739,5.79404643,1960.9,1960.4,5.69283521]
[1772444168939,4.51911611,1960.8,1960.4,4.41758733]
[1772444170258,4.51911611,1960.8,1960.4,5.69283475]
[1772444173273,5.79410959,1960.8,1960.4,4.41758733]
[1772444173441,4.51911611,1960.8,1960.4,4.41758733]
[1772444173854,4.51911611,1960.8,1960.5,0.001]
[1772444174978,7.60254598,1961.0,1960.5,4.09849851]
[1772444175160,4.36165034,1960.9,1960.5,4.09849851]
[1772444175549,4.36165034,1960.9,1960.5,5.3736796]
[1772444176889,0.002,1961.2,1960.6,4.56607064]
[1772444177074,0.002,1961.2,1960.9,4.09749851]
[1772444177245,4.11080398,1961.2,1960.7,5.53294676]
[1772444177446,4.10880398,1960.9,1960.5,0.001]
[1772444180064,1.27498126,1960.9,1960.5,0.001]
[1772444180380,4.10880398,1960.8,1960.5,0.001]
[1772444186886,5.38379437,1960.8,1960.6,0.001]
[1772444187084,4.10880398,1960.7,1960.6,0.001]
[1772444187278,1.27506106,1960.7,1960.4,0.001]
[1772444187477,4.10880398,1960.7,1960.4,4.25889194]
[1772444187682,4.10880398,1960.7,1960.4,0.001]
[1772444189295,4.10880398,1960.7,1960.4,4.25889194]
[1772444189687,4.10880398,1960.7,1960.4,0.001]
[1772444189688,4.10880398,1960.6,1960.4,0.001]
[1772444190397,0.002,1960.8,1960.4,4.25889194]
[1772444191283,0.002,1960.8,1960.5,5.53307684]
[1772444191483,0.002,1960.8,1960.5,4.25789194]
[1772444193189,0.002,1960.8,1960.5,1.27512337]
[1772444193389,0.002,1960.8,1960.6,4.25789194]
[1772444196005,0.002,1960.8,1960.6,5.53300004]
[1772444196903,0.002,1960.8,1960.4,5.53413448]
[1772444196904,4.11080398,1960.8,1960.4,5.53413448]
[1772444197883,4.11080398,1960.8,1960.5,4.25789194]
[1772444198083,0.002,1960.8,1960.5,4.25789194]
[1772444198904,4.11080398,1960.8,1960.4,1.27624254]
[1772444199202,4.11080398,1960.8,1960.4,5.53413448]
[1772444199406,4.11080398,1960.8,1960.4,1.27624254]
[1772444199611,4.11080398,1960.8,1960.5,4.25789194]
[1772444199811,4.11080398,1960.8,1960.6,0.001]
[1772444199993,0.002,1960.7,1960.6,0.001]
[1772444201713,4.11080398,1960.7,1960.6,0.001]
[1772444203458,4.11080398,1960.7,1960.5,0.001]
[1772444203909,4.10880398,1960.5,1960.3,0.001]
[1772444206389,5.38400356,1960.5,1960.3,0.001]
[1772444206814,4.10880398,1960.5,1960.3,0.001]
[1772444207597,4.33162995,1960.4,1960.0,0.00153886]
[1772444207924,4.80020208,1960.4,1960.0,0.00153886]
[1772444208121,5.60694495,1960.3,1960.0,0.00153886]
[1772444208419,4.33162995,1960.3,1960.0,4.20914358]
[1772444210420,5.60695239,1960.3,1960.0,4.20914358]
[1772444210961,4.33162995,1960.2,1960.0,0.00153886]
[1772444211109,1.27532244,1960.3,1959.7,4.20760472]
[1772444211110,4.33162995,1960.0,1959.7,4.20760472]
[1772444211494,4.33162995,1960.0,1959.7,5.48330265]
[1772444211721,4.33162995,1960.0,1959.7,4.20760472]
[1772444212332,4.33162995,1960.0,1959.7,5.48329778]
[1772444213701,2.161,1960.1,1959.8,4.20760472]
[1772444213900,6.49262995,1960.1,1959.8,4.20760472]
[1772444214299,6.49262995,1960.1,1960.0,0.001]
[1772444214829,4.33162995,1960.0,1959.8,0.001]
[1772444216704,4.33162995,1959.9,1959.8,0.001]
[1772444218029,4.33162995,1959.9,1959.5,4.20760472]
[1772444218217,2.164,1959.8,1959.5,4.20760472]
[1772444218832,2.164,1959.8,1959.5,5.48338856]
[1772444219428,6.49562995,1959.8,1959.5,5.48343398]
[1772444220014,4.33162995,1959.7,1959.1,5.48370088]
[1772444220213,4.33162995,1959.7,1959.2,4.20760472]
[1772444220944,5.10188514,1960.1,1959.6,4.20760472]
[1772444220945,4.33162995,1960.1,1959.6,4.20760472]
[1772444221154,6.49662995,1960.3,1959.8,4.20760472]
[1772444221516,4.33162995,1960.2,1959.5,2.30357213]
[1772444221829,4.33162995,1960.2,1959.6,4.20760472]
[1772444223131,4.33162995,1960.2,1959.7,5.48331018]
[1772444224015,4.33162995,1960.2,1959.7,1.27570546]
[1772444225467,4.33162995,1960.2,1959.7,4.20760472]
[1772444225824,4.80020208,1960.6,1959.7,4.67617685]
[1772444226029,0.002,1960.7,1960.3,4.67617685]
[1772444226249,0.002,1960.4,1960.3,4.67617685]
[1772444226423,0.002,1960.7,1960.3,4.67617685]
[1772444226750,0.002,1960.5,1960.1,4.20760472]
[1772444227327,0.002,1960.5,1960.2,1.27538006]
[1772444229560,0.002,1960.5,1960.2,11.27538006]
[1772444231957,0.002,1960.7,1960.3,4.20760472]
[1772444232265,0.002,1960.7,1960.5,4.20760472]
[1772444232841,0.002,1960.9,1960.5,4.20760472]
[1772444233046,0.002,1960.9,1960.7,4.20760472]
[1772444233448,0.002,1960.9,1960.5,4.20760472]
[1772444234040,0.002,1960.9,1960.6,5.25618824]
[1772444234539,0.002,1960.9,1960.4,5.25628359]
[1772444234540,3.88340269,1960.9,1960.4,5.25628359]
[1772444234738,4.19573164,1960.9,1960.4,1.27521521]
[1772444234937,4.19373164,1960.7,1960.2,15.25640899]
[1772444235142,3.88140269,1960.7,1960.2,15.56873794]
[1772444236577,3.88140269,1960.6,1960.2,11.27537855]
[1772444239061,3.88027835,1960.8,1960.3,4.03567161]
[1772444239268,0.002,1960.9,1960.5,4.03567161]
[1772444239269,3.88227835,1960.9,1960.5,4.03567161]
[1772444239871,0.002,1960.6,1960.5,4.03567161]
[1772444240169,3.88227835,1960.9,1960.5,4.03567161]
[1772444240377,0.002,1960.8,1960.5,4.03567161]
[1772444240745,0.002,1960.8,1960.6,1.27511986]
[1772444240964,0.002,1960.8,1960.5,5.31080625]
[1772444242145,1e-08,1961.0,1960.6,4.03567161]
[1772444242340,3.88027835,1960.9,1960.5,1.17872188]
[1772444242575,3.88027835,1960.9,1960.3,4.03567161]
[1772444242753,5.15520471,1960.9,1960.3,5.3109396]
[1772444242956,3.88027836,1961.0,1960.4,4.03567161]
[1772444243446,5.15514244,1961.0,1960.4,4.03567161]
[1772444244463,5.15514244,1961.0,1960.4,3.91067161]
[1772444244658,5.15514487,1961.0,1960.5,1.2751849]
[1772444245177,5.15514285,1961.0,1960.5,1.2751849]
[1772444246038,1e-08,1961.0,1960.6,4.03567161]
[1772444246548,3.88027835,1960.9,1960.3,4.03567161]
[1772444246754,3.88027835,1960.7,1960.3,1.27530451]
[1772444246948,3.88027835,1960.7,1960.2,11.27533024]
[1772444247270,3.88027835,1960.7,1960.2,10.0]
[1772444249476,5.15539821,1960.6,1960.2,10.0]
[1772444250470,3.88027835,1960.6,1960.2,11.27537815]
[1772444250680,3.88027835,1960.6,1960.2,10.0]
[1772444251887,3.88027835,1960.6,1960.3,0.001]
[1772444252374,1.27710225,1960.7,1960.3,0.001]
[1772444253643,5.1020355,1960.8,1960.4,4.03567161]
[1772444253849,4.10560185,1960.9,1960.6,1.27511986]
[1772444254044,4.10560185,1960.9,1960.7,5.90567161]
[1772444254668,0.002,1961.2,1960.8,4.03567161]
[1772444255859,1.27674783,1961.2,1960.8,4.03567161]
[1772444256181,1.27674783,1961.2,1960.7,1.87]
[1772444256182,0.002,1961.2,1960.9,5.90767161]
[1772444258567,8.96454423,1961.2,1960.8,5.90767161]
[1772444259152,8.96454423,1961.2,1960.8,1.872]
[1772444259451,0.002,1962.1,1961.2,4.03567161]
[1772444259651,3.88027835,1961.9,1961.3,4.03567161]
[1772444259866,8.17739483,1961.8,1961.2,5.36267161]
[1772444260088,8.17939483,1961.8,1961.3,1.755]
[1772444260377,8.17939483,1961.8,1961.3,3.02966283]
[1772444260581,4.29911648,1961.7,1961.3,4.03567161]
[1772444261185,4.29911648,1961.7,1961.4,4.03567161]
[1772444261480,4.29911648,1961.6,1961.4,4.34775824]
[1772444261686,4.29911648,1961.8,1961.5,4.34775824]
[1772444261881,0.00153886,1962.0,1961.5,4.34775824]
[1772444262187,0.00153886,1962.0,1961.9,0.31208663]
[1772444262578,0.00153886,1962.0,1961.8,1.27430613]
[1772444262885,0.00153886,1962.0,1961.8,5.30997774]
[1772444263394,0.00153886,1962.0,1961.6,5.90767161]
[1772444263569,0.00153886,1962.0,1961.6,7.18213562]
[1772444264175,0.00153886,1962.0,1961.7,4.03567161]
[1772444264590,0.002,1962.4,1961.9,4.03567161]
[1772444264998,3.88227835,1962.2,1961.7,1.875]
[1772444265195,3.88227835,1962.2,1961.7,5.91067161]
[1772444265378,3.88227835,1962.2,1961.6,1.27446401]
[1772444265379,3.88227835,1962.2,1961.6,1.875]
[1772444265692,3.88227835,1962.2,1961.6,5.91067161]
[1772444266125,3.88227835,1962.2,1961.4,4.03567161]
[1772444266265,0.002,1962.2,1961.7,4.03567161]
[1772444266470,0.002,1961.9,1961.7,4.03567161]
[1772444266785,0.002,1962.0,1961.7,4.03567161]
[1772444268401,0.002,1962.0,1961.8,5.44575265]
[1772444269991,0.002,1962.2,1961.9,4.17141276]
[1772444270303,0.002,1962.2,1961.9,6.05041276]
[1772444270673,0.002,1962.2,1962.0,1.27420998]
[1772444271516,0.002,1962.4,1962.1,4.17141276]
[1772444271802,0.002,1962.8,1962.4,4.17141276]
[1772444271985,0.002,1962.8,1962.5,7.61203182]
[1772444272169,0.002,1962.8,1962.6,1.881]
[1772444272374,0.00353886,1963.0,1962.6,1.881]
[1772444272800,0.00353886,1963.0,1962.8,4.17141276]
[1772444273508,4.50359953,1963.0,1962.3,4.17141276]
[1772444273698,4.50359953,1963.0,1962.4,3.15593875]
[1772444273888,4.50359953,1963.0,1962.4,7.32735151]
[1772444275278,5.77716532,1963.0,1962.5,1.884]
[1772444275777,4.50359953,1963.0,1962.5,1.884]
[1772444276513,0.00353886,1963.0,1962.6,4.17141276]
[1772444276812,0.002,1963.3,1962.9,4.17141276]
[1772444277103,0.002,1963.3,1962.9,6.05541276]
[1772444277507,4.50006067,1963.6,1963.0,4.17141276]
[1772444277720,4.50006067,1963.9,1963.2,4.17141276]
[1772444278812,4.50006067,1963.9,1963.3,6.05641276]
[1772444279312,4.50006067,1963.9,1963.4,1.27330141]
[1772444279508,5.7730475,1963.9,1963.3,7.32973438]
[1772444279723,4.50006067,1963.8,1963.1,1.884]
[1772444280496,4.50006067,1963.6,1962.6,4.17141276]
[1772444280709,4.50006067,1963.4,1962.6,6.05541276]
[1772444281418,5.77340345,1963.4,1962.7,5.4451683]
[1772444281608,4.50006067,1963.7,1962.9,4.17141276]
[1772444281788,4.50006067,1963.8,1963.1,4.17141276]
[1772444281988,4.50006067,1963.8,1963.0,1.55961906]
[1772444281989,4.50006067,1963.8,1963.2,6.05541276]
[1772444283704,4.50006067,1963.8,1963.2,1.774]
[1772444283705,4.50006067,1963.7,1963.2,1.774]
[1772444284389,4.50006067,1963.7,1963.0,3.1565301]
[1772444284589,1.27310287,1963.8,1963.1,4.17141276]
[1772444284792,4.50006067,1963.8,1963.1,4.17141276]
[1772444285444,10.00153886,1964.0,1963.7,4.17141276]
[1772444285588,5.77268521,1964.5,1963.9,1.27297723]
[1772444285589,4.50006067,1964.5,1963.9,1.27297723]
[1772444285931,4.50006067,1964.5,1963.3,1.27331906]
[1772444285932,1.55961906,1964.3,1963.3,1.27331906]
[1772444286095,1.55961906,1964.3,1963.1,4.17141276]
[1772444286096,4.50006067,1964.2,1963.1,4.17141276]
[1772444286296,4.50006067,1963.9,1963.1,1.024]
[1772444286600,4.50006067,1963.6,1963.1,0.57590266]
[1772444287926,1.27323656,1963.5,1963.1,0.57590266]
[1772444288292,5.77329723,1963.5,1963.1,0.57590266]
[1772444288692,4.50006067,1963.5,1963.1,0.57590266]
[1772444288916,4.50006067,1963.7,1963.1,1.27349588]
[1772444289288,4.50006067,1963.7,1963.0,6.05495162]
[1772444289525,4.50006067,1963.7,1963.0,0.00153886]
[1772444290224,1.27317172,1963.6,1963.0,0.00153886]
[1772444290394,4.50006067,1963.5,1963.0,0.00153886]
[1772444290828,4.50006067,1963.5,1963.2,0.001]
[1772444291027,4.50006067,1963.5,1963.0,0.00153886]
[1772444291390,2.83279078,1963.6,1962.3,1.2739667]
[1772444291391,4.50006067,1963.1,1962.3,1.2739667]
[1772444291901,4.50006067,1963.1,1962.9,0.001]
[1772444292097,4.50006067,1963.1,1962.3,3.1539667]
[1772444292300,5.77362154,1963.0,1962.3,3.1539667]
[1772444292926,4.50006067,1962.9,1962.3,1.2739667]
[1772444293500,4.50006067,1962.9,1962.2,6.05141276]
[1772444293919,4.50006067,1962.9,1962.2,1.88]
[1772444294226,4.50006067,1962.9,1962.0,5.0982688]
[1772444294227,4.50006067,1962.9,1962.0,4.28979555]
[1772444294525,4.64194968,1962.5,1962.0,0.00153886]
[1772444296515,5.91589207,1962.5,1962.0,0.00153886]
[1772444297035,4.64194968,1962.8,1962.0,4.28979555]
[1772444297238,4.64194968,1963.1,1962.4,4.25447027]
[1772444297528,4.37570537,1963.4,1962.7,4.25447027]
[1772444297916,5.64900912,1963.4,1962.8,1.596]
[1772444298129,4.37570537,1963.4,1962.8,1.596]
[1772444298307,5.64892131,1963.6,1962.8,1.878]
[1772444298930,5.64892131,1963.6,1962.8,3.151642]
[1772444299102,4.37570537,1963.5,1962.7,1.27369658]
[1772444299710,4.37570537,1963.5,1962.8,4.25447027]
[1772444299917,1.27514005,1963.7,1962.8,4.25447027]
[1772444300104,5.65084542,1963.7,1962.8,4.25447027]
[1772444300322,4.37770537,1963.7,1962.8,4.25447027]
[1772444300555,5.65082187,1963.7,1962.9,1.877]
[1772444300735,5.65082032,1963.7,1962.9,4.25447027]
[1772444300936,4.37570537,1963.6,1963.0,3.15053313]
[1772444301333,4.37570537,1963.6,1963.0,1.27353313]
[1772444301950,4.37570537,1963.6,1962.6,1.27375554]
[1772444302151,4.37570537,1963.6,1962.6,3.15175554]
[1772444302367,4.37570537,1963.5,1962.7,1.878]
[1772444302771,4.37570537,1963.5,1962.6,1.27375554]
[1772444302967,4.37570537,1963.3,1962.3,4.25447027]
[1772444303172,4.37570537,1963.3,1962.4,1.877]
[1772444303874,4.37570537,1963.3,1962.3,1.27401518]
[1772444304041,4.37570537,1963.3,1962.3,5.52848545]
[1772444304971,5.6491365,1963.2,1962.3,5.52848545]
[1772444305943,4.37570537,1963.1,1962.3,5.52848545]
[1772444306445,4.37570537,1963.1,1962.4,1.877]
[1772444307175,5.64926624,1963.0,1962.3,7.40548545]
[1772444307750,4.37570537,1963.0,1962.3,7.40548545]
[1772444307964,4.37570537,1963.0,1962.3,5.52848545]
[1772444308180,4.37570537,1963.0,1962.4,1.878]
[1772444309041,4.37570537,1963.2,1962.5,1.27388535]
[1772444309359,5.64915486,1963.2,1962.5,1.27388535]
[1772444310366,5.64915486,1963.2,1962.5,5.52835562]
[1772444312245,4.37570537,1963.1,1962.6,1.879]
[1772444313069,4.37570537,1963.1,1962.3,5.0959879]
[1772444313376,4.37570537,1963.1,1962.3,9.35045817]
[1772444313564,4.37570537,1963.1,1962.4,1.879]
[1772444313762,4.37570537,1963.1,1962.1,0.001]
[1772444313763,4.37570537,1963.0,1962.1,0.001]
[1772444313944,4.37570537,1962.6,1962.0,0.00253886]
[1772444314772,1.27375554,1962.7,1962.0,4.25700913]
[1772444315280,5.64946091,1962.7,1962.0,4.25700913]
[1772444316276,5.64946091,1962.7,1962.1,5.52861531]
[1772444316277,5.64946272,1962.7,1962.1,5.52861531]
[1772444316650,5.64946272,1962.7,1962.1,5.52961531]
[1772444316877,1.27375735,1962.7,1962.1,0.001]
[1772444317176,4.37570537,1962.6,1962.1,0.001]
[1772444317477,4.37570537,1963.0,1962.1,4.25547027]
[1772444318464,5.64926924,1963.0,1962.3,4.25447027]
[1772444318781,5.64926924,1963.0,1962.3,6.13147027]
[1772444320682,5.64939294,1962.9,1962.3,3.15098136]
[1772444320886,5.64939294,1962.9,1962.3,3.15100911]
[1772444321451,4.37770537,1963.1,1962.4,4.25447027]
[1772444321798,5.65120154,1963.1,1962.4,4.25447027]
[1772444322089,4.37770537,1963.1,1962.4,4.25447027]
[1772444322655,4.37770537,1963.1,1962.5,5.52835562]
[1772444322868,5.65120314,1963.1,1962.5,5.52835562]
[1772444323091,4.37770537,1963.1,1962.5,5.52835562]
[1772444323673,5.65120549,1963.1,1962.5,5.52835562]
[1772444323976,4.37770537,1963.1,1962.5,5.52835562]
[1772444324568,5.65121447,1963.1,1962.5,5.52835562]
[1772444324973,4.37570537,1963.0,1962.5,1.27388535]
[1772444325177,4.37570537,1963.0,1962.6,1.879]
[1772444326021,4.37570537,1963.0,1962.2,3.15408011]
[1772444327078,5.64933112,1962.9,1962.2,7.40855038]
[1772444327396,4.5704293,1962.8,1962.2,7.40855038]
[1772444327895,4.5704293,1962.8,1962.1,1.27510787]
[1772444328100,4.5704293,1962.8,1962.2,6.32936874]
[1772444328271,5.84595327,1963.1,1962.3,4.44936874]
[1772444328591,4.5724293,1963.1,1962.3,4.44936874]
[1772444329294,4.5724293,1963.1,1962.5,4.44604912]
[1772444329697,4.5704293,1962.5,1962.0,0.00253886]
[1772444329996,4.5704293,1962.1,1961.8,0.001]
[1772444330397,4.5704293,1962.0,1961.5,0.001]
[1772444330567,4.5704293,1961.7,1960.9,4.44273252]
[1772444331299,5.84489912,1961.6,1960.9,4.44273252]
[1772444331474,4.5704293,1961.5,1960.7,6.53955776]
[1772444331675,4.5704293,1961.5,1960.8,1.27496067]
[1772444331868,4.5704293,1961.6,1960.7,6.53954216]
[1772444332099,4.5704293,1961.9,1961.0,4.50917331]
[1772444332271,1.27427874,1961.9,1961.0,4.50917331]
[1772444332471,1.27426025,1962.0,1961.0,4.50917331]
[1772444332789,3.04122447,1961.9,1961.0,4.50917331]
[1772444333174,4.31555445,1961.9,1961.1,1.27479475]
[1772444333375,3.04122447,1961.8,1961.2,6.38563445]
[1772444334602,3.04122447,1961.8,1960.3,4.50863445]
[1772444334603,4.5704293,1961.2,1960.3,4.50863445]
[1772444334908,3.03948591,1961.1,1960.3,4.50863445]
[1772444335272,1.27485976,1961.0,1960.3,4.50863445]
[1772444335595,1.27476283,1961.2,1960.4,4.50763445]
[1772444336568,1.27476283,1961.2,1960.5,1.878]
[1772444336877,1.27476283,1961.2,1960.3,1.27630312]
[1772444336878,4.5704293,1961.1,1960.3,0.001]
[1772444337077,3.03257551,1961.0,1960.3,5.78393565]
[1772444337288,1.27476283,1961.2,1960.3,5.78393565]
[1772444337488,5.84519213,1961.2,1960.3,5.78393565]
[1772444337692,5.84519213,1961.2,1960.3,4.50863445]
[1772444338092,4.5704293,1961.1,1960.3,4.50863445]
[1772444338602,4.5704293,1961.1,1960.3,5.78394729]
[1772444338804,1.27476283,1961.2,1960.5,4.50763445]
[1772444339374,5.09882279,1961.3,1960.5,4.50763445]
[1772444339808,4.5704293,1960.5,1960.0,0.00253886]
[1772444340007,4.5704293,1960.3,1959.5,4.50863445]
[1772444340210,4.5704293,1960.3,1959.5,5.78442917]
[1772444340415,4.5704293,1960.3,1959.5,4.50863445]
[1772444340704,4.5704293,1960.3,1959.5,0.001]
[1772444340915,4.5704293,1960.6,1959.8,4.50763445]
[1772444341289,4.5704293,1960.6,1960.3,0.001]
[1772444341688,5.84553051,1960.7,1960.1,0.001]
[1772444341986,5.1001463,1960.8,1960.1,0.001]
[1772444341987,1.27645886,1961.0,1960.1,4.50863445]
[1772444342187,1.27640755,1961.0,1960.1,4.50863445]
[1772444342496,1.27640755,1961.0,1960.1,6.04763445]
[1772444342878,1.27640755,1961.0,1960.1,4.50863445]
[1772444343079,5.84683685,1961.0,1960.1,4.50863445]
[1772444343305,4.5704293,1960.9,1960.1,5.60863445]
[1772444343482,0.00153886,1961.0,1960.3,4.50763445]
[1772444345283,5.84493167,1961.6,1960.6,4.50763445]
[1772444345509,5.84493167,1961.6,1960.8,4.50763445]
[1772444345816,5.84493167,1961.6,1960.9,1.27492477]
[1772444346013,5.84493167,1961.6,1960.8,5.78258539]
[1772444346820,2.18340287,1961.4,1960.3,1.27531351]
[1772444346992,5.84493167,1961.6,1960.5,4.50763445]
[1772444347193,4.5704293,1961.4,1960.5,4.50763445]
[1772444348096,5.84509406,1961.3,1960.5,5.78275684]
[1772444348793,5.84509406,1961.3,1960.5,5.78281186]
[1772444351108,5.84493641,1961.6,1960.6,4.50763445]
[1772444351412,3.02001257,1961.5,1960.6,4.50763445]
[1772444351709,4.5704293,1961.4,1960.6,6.38163445]
[1772444351917,5.84481155,1961.8,1960.7,4.50763445]
[1772444352123,4.29386798,1961.7,1960.9,4.50763445]
[1772444352429,4.5704293,1961.4,1960.3,4.50763445]
[1772444352593,3.02113339,1961.6,1960.3,4.50763445]
[1772444352594,4.5704293,1961.6,1960.3,4.50763445]
[1772444352789,4.5704293,1961.4,1960.5,4.50763445]
[1772444353491,4.5704293,1961.4,1960.5,6.38163445]
[1772444353799,0.002,1961.2,1960.5,6.38163445]
[1772444354117,0.002,1961.2,1960.5,7.65681721]
[1772444354316,3.02872843,1961.2,1960.5,7.65681721]
[1772444354990,3.02872843,1961.2,1960.5,6.38163445]
[1772444355318,3.02872843,1961.2,1960.5,7.65681863]
[1772444356220,1.27479475,1961.1,1960.5,7.65681863]
[1772444356392,1.27479475,1961.1,1960.5,3.14918418]
[1772444356592,1.27479475,1961.1,1960.1,0.001]
[1772444356593,4.61837981,1960.5,1960.1,0.001]
[1772444356812,3.99656505,1960.6,1960.1,0.001]
[1772444356813,3.03197701,1960.4,1960.1,0.001]
[1772444357014,3.03197701,1960.3,1960.1,0.001]
[1772444357222,2.43297957,1960.7,1960.1,5.95905971]
[1772444357521,3.03510826,1960.6,1960.1,5.95905971]
[1772444357700,3.03510826,1960.5,1960.1,5.95905971]
[1772444357900,2.43297957,1960.8,1960.1,5.95905971]
[1772444358101,3.03475198,1960.7,1960.1,5.95905971]
[1772444358302,3.03475198,1960.6,1960.1,5.95905971]
[1772444358515,3.03475198,1960.5,1960.1,5.95905971]
[1772444358711,3.70800538,1960.8,1960.1,5.95905971]
[1772444358910,3.03748585,1960.7,1960.1,5.95905971]
[1772444359126,3.03748585,1960.6,1960.1,5.95905971]
[1772444359422,3.03748585,1960.5,1960.1,5.95905971]
[1772444359622,3.03748585,1960.4,1960.1,5.95905971]
[1772444359791,2.86147842,1960.3,1960.1,5.95905971]
[1772444359994,2.43297957,1960.7,1960.2,4.68265487]
[1772444360428,2.43297957,1960.8,1960.4,4.68265487]
[1772444360720,2.43297957,1961.0,1960.5,4.68265487]
[1772444361825,3.70784289,1961.0,1960.5,4.68265487]
[1772444362124,3.70784794,1961.0,1960.5,4.68265487]
[1772444362329,3.70784794,1961.0,1960.4,7.83590481]
[1772444363524,2.43297957,1961.0,1960.5,4.68265487]
[1772444364429,2.43297957,1961.0,1960.6,1.27511986]
[1772444364647,3.65146936,1961.2,1960.9,1.56358548]
[1772444364829,0.002,1961.3,1961.0,6.56165487]
[1772444365130,0.002,1961.3,1961.0,1.879]
[1772444366624,0.002,1961.3,1961.0,3.1538066]
[1772444366831,0.002,1961.3,1961.0,1.879]
[1772444367029,0.002,1961.2,1961.0,3.15385384]
[1772444367323,0.002,1961.2,1961.1,4.68265487]
[1772444369932,0.002,1961.2,1961.1,5.95744962]
[1772444370130,0.002,1961.5,1961.2,4.68265487]
[1772444370305,0.00153886,1962.0,1961.4,4.68265487]
[1772444372203,0.00153886,1962.0,1961.6,4.68265487]
[1772444372399,0.00153886,1962.0,1961.7,1.885]